[Event "8th Mersin Open 2024"]
[Site "Mersin"]
[Date "2024.11.12"]
[Round "4"]
[White "Atis, Hasan"]
[Black "Mahdavi, Armin"]
[Result "1-0"]
[ECO "C88"]
[WhiteElo "2167"]
[BlackElo "2038"]
[Annotator "RC"]
[PlyCount "119"]
[EventDate "2024.11.10"]
[EventType "swiss"]
[EventCountry "TUR"]
[SourceTitle "playchess.com"]
[Source "ChessBase"]
[SourceQuality "1"]
[TimeControl "5400+30"]

1. e4 {[%emt 0:01:00]} e5 {[%emt 0:01:00]} 2. Nf3 {[%emt 0:00:00]} Nc6 {[%emt 0:00:30]} 3. Bb5 {[%emt 0:00:00]} a6 {[%emt 0:01:30]} 4. Ba4 {[%emt 0:00:30]} Nf6 {[%emt 0:00:30]} 5. O-O {[%emt 0:01:30]} Be7 {[%emt 0:01:30]} 6. Re1 {[%emt 0:00:00]} b5 {[%emt 0:00:30]} 7. Bb3 {[%emt 0:00:00]} O-O {[%emt 0:00:00]} 8. h3 {[%emt 0:01:30]} Bb7 {[%emt 0:02:00]} 9. d3 {[%emt 0:00:30]} d6 {[%emt 0:01:30]} 10. a4 {[%emt 0:01:30]} Na5 {[%emt 0:03:30]} 11. Ba2 {[%emt 0:00:30]} c5 {[%emt 0:00:30]} 12. Nc3 {[%emt 0:02:30]} b4 {[%emt 0:05:30]} 13. Ne2 {[%emt 0:00:30]} b3 {[%emt 0:00:30]} 14. Bxb3 {[%emt 0:01:30]} Nxb3 {[%emt 0:01:30]} 15. cxb3 {[%emt 0:00:00]} Nd7 {[%emt 0:04:30]} 16. Nd2 {[%emt 0:05:00]} f5 {[%emt 0:04:30]} 17. Nc4 {[%emt 0:00:30]} f4 {[%emt 0:06:30]} 18. f3 {[%emt 0:00:00]} Nb8 {[%emt 0:03:30]} 19. a5 {[%emt 0:08:00]} Nc6 {[%emt 0:02:30]} 20. Bd2 {[%emt 0:01:30]} Kh8 {[%emt 0:05:30]} 21. Nb6 {[%emt 0:01:30]} Rb8 {[%emt 0:01:30]} 22. b4 {[%emt 0:00:30]} Nxb4 {[%emt 0:02:30]} 23. Bxb4 {[%emt 0:01:30]} cxb4 {[%emt 0:00:30]} 24. Qa4 {[%emt 0:00:30]} Bc8 {[%emt 0:08:30]} 25. Rec1 {[%emt 0:03:30]} Be6 {[%emt 0:08:30]} 26. Qxb4 {[%emt 0:03:30]} Bh4 {[%emt 0:03:30]} 27. Kf1 {[%emt 0:03:30]} Rf6 {[%emt 0:05:30]} 28. Rc6 {[%emt 0:17:30]} Bg8 {[%emt 0:09:03]} 29. Rac1 {[%emt 0:11:30]} Rg6 {[%emt 0:01:10]} 30. Ng1 {[%emt 0:04:30]} Qg5 {[%emt 0:03:26]} 31. Qd2 {[%emt 0:00:00]} h6 {[%emt 0:02:44]} 32. b4 {[%emt 0:03:00]} Qe7 {[%emt 0:04:32]} 33. Rc7 {[%emt 0:02:30]} Qe8 {[%emt 0:00:22]} 34. Rc8 {[%emt 0:01:30]} Rxc8 {[%emt 0:00:45]} 35. Rxc8 {[%emt 0:00:00]} Qb5 {[%emt 0:00:07]} 36. Qc3 {[%emt 0:07:00]} Kh7 {[%emt 0:00:58]} 37. Rxg8 {[%emt 0:04:29]} Kxg8 {[%emt 0:01:16]} 38. Qc4+ {[%emt 0:00:06]} Qxc4 {[%emt 0:00:24]} 39. dxc4 {[%emt 0:00:59]} Bd8 {[%emt 0:00:20]} 40. Nd5 {[%emt 0:00:55]} Re6 {[%emt 0:00:38]} 41. Ne2 {[%emt 0:02:53]} Kf7 {[%emt 0:01:01]} 42. Nc1 {[%emt 0:03:21]} Ke8 {[%emt 0:03:13]} 43. b5 {[%emt 0:04:16]} Bxa5 {[%emt 0:01:13]} 44. Nb3 {[%emt 0:01:08]} Bb6 {[%emt 0:01:37]} 45. Nxb6 {[%emt 0:01:43]} Re7 {[%emt 0:00:28]} 46. Nd5 {[%emt 0:02:35]} Rb7 {[%emt 0:01:23]} 47. Na5 {[%emt 0:00:19]} Rb8 {[%emt 0:00:00]} 48. Nc6 {[%emt 0:02:14]} Rb7 {[%emt 0:00:31]} 49. Na5 {[%emt 0:00:52]} Rb8 {[%emt 0:00:22]} 50. bxa6 {[%emt 0:00:28]} Rb1+ {[%emt 0:00:44]} 51. Ke2 {[%emt 0:00:04]} Ra1 {[%emt 0:00:07]} 52. a7 {[%emt 0:00:50]} Rxa5 {[%emt 0:00:30]} 53. a8=Q+ {[%emt 0:00:30]} Rxa8 {[%emt 0:00:07]} 54. Nc7+ {[%emt 0:00:00]} Kd7 {[%emt 0:00:30]} 55. Nxa8 {[%emt 0:00:14]} Kc6 {[%emt 0:00:00]} 56. Kd3 {[%emt 0:00:00]} Kb7 {[%emt 0:00:00]} 57. c5 {[%emt 0:00:21]} dxc5 {[%emt 0:00:23]} 58. Kc4 {[%emt 0:00:00]} Kxa8 {[%emt 0:00:06]} 59. Kxc5 {[%emt 0:00:00]} g5 {[%emt 0:00:57]} 60. Kd5 {[%emt 0:00:00]} 1-0

[Event "8th Mersin Open 2024"]
[Site "Mersin"]
[Date "2024.11.12"]
[Round "4"]
[White "Biriya, Mohammadamin"]
[Black "Celebi, Mehmet Alper"]
[Result "1-0"]
[ECO "E01"]
[WhiteElo "2139"]
[BlackElo "2014"]
[Annotator "NA RC"]
[PlyCount "70"]
[EventDate "2024.11.10"]
[EventType "swiss"]
[EventCountry "TUR"]
[SourceTitle "playchess.com"]
[Source "ChessBase"]
[SourceQuality "1"]
[TimeControl "5400+30"]

1. d4 {[%emt 0:01:00]} d5 {[%emt 0:01:00]} 2. c4 {[%emt 0:00:30]} c6 {[%emt 0:00:30]} 3. Nf3 {[%emt 0:00:00]} Nf6 {[%emt 0:00:00]} 4. g3 {[%emt 0:00:00]} a6 {[%emt 0:01:00]} 5. Bg2 {[%emt 0:02:30]} e6 {[%emt 0:01:30]} 6. Qc2 {[%emt 0:05:30]} Nbd7 {[%emt 0:00:30]} 7. Nbd2 {[%emt 0:00:30]} Bd6 {[%emt 0:12:30]} 8. O-O $14 {[%emt 0:00:30]} O-O {[%emt 0:03:30]} 9. e4 {[%emt 0:01:30]} dxe4 {[%emt 0:00:30]} 10. Nxe4 {[%emt 0:00:00]} Nxe4 {[%emt 0:03:30]} 11. Qxe4 {[%emt 0:00:00]} c5 {[%emt 0:00:30]} 12. Rd1 {[%emt 0:00:30]} Nf6 {[%emt 0:00:30]} 13. Qe2 {[%emt 0:00:30]} cxd4 {[%emt 0:00:30]} 14. Nxd4 {[%emt 0:00:30]} e5 {[%emt 0:00:30]} 15. Nc2 {[%emt 0:00:30]} Bg4 {[%emt 0:00:30]} 16. Bf3 {[%emt 0:00:30]} Bxf3 {[%emt 0:00:30]} 17. Qxf3 {[%emt 0:00:30]} Qc7 {[%emt 0:00:30]} 18. Bg5 {[%emt 0:00:30]} Ne8 {[%emt 0:34:30]} 19. Ne3 {[%emt 0:15:30]} f6 {[%emt 0:14:30]} 20. Nd5 {[%emt 0:00:30]} Qxc4 {[%emt 0:00:30]} 21. Nb6 {[%emt 0:01:30]} Qb4 {[%emt 0:00:30]} 22. Be3 {[%emt 0:07:30]} e4 {[%emt 0:06:53]} 23. Qf5 {[%emt 0:01:30]} Rd8 {[%emt 0:00:30]} 24. a3 {[%emt 0:00:30]} Qxb2 {[%emt 0:01:48]} 25. Nc4 {[%emt 0:01:30]} Qb3 {[%emt 0:03:25]} 26. Bb6 {[%emt 0:00:30]} Nc7 {[%emt 0:04:17]} 27. Rdc1 {[%emt 0:03:30]} Rde8 {[%emt 0:08:32]} 28. Nxd6 {[%emt 0:00:30]} Qxb6 {[%emt 0:00:37]} 29. Nxe8 {[%emt 0:00:30]} Nxe8 {[%emt 0:00:20]} 30. Qxe4 {[%emt 0:00:00]} Nc7 {[%emt 0:00:59]} 31. Qc4+ {[%emt 0:00:00]} Ne6 {[%emt 0:00:30]} 32. Re1 {[%emt 0:00:00]} Re8 {[%emt 0:00:37]} 33. Rab1 {[%emt 0:00:00]} Qd6 {[%emt 0:00:21]} 34. Rxb7 {[%emt 0:00:00]} h5 {[%emt 0:00:33]} 35. Ra7 {[%emt 0:00:00]} Re7 {[%emt 0:00:38]} 1-0

[Event "8th Mersin Open 2024"]
[Site "Mersin"]
[Date "2024.11.12"]
[Round "4"]
[White "Hasirci, Ozgur Deniz"]
[Black "Anacak, Hasan Gunes"]
[Result "1-0"]
[ECO "B22"]
[WhiteElo "2128"]
[BlackElo "2008"]
[Annotator "NA RC"]
[PlyCount "81"]
[EventDate "2024.11.10"]
[EventType "swiss"]
[EventCountry "TUR"]
[SourceTitle "playchess.com"]
[Source "ChessBase"]
[SourceQuality "1"]
[TimeControl "5400+30"]

1. e4 {[%emt 0:01:00]} c5 {[%emt 0:01:00]} 2. c3 {[%emt 0:00:30]} Nf6 {[%emt 0:00:00]} 3. e5 {[%emt 0:00:00]} Nd5 {[%emt 0:00:00]} 4. d4 {[%emt 0:00:00]} cxd4 {[%emt 0:00:00]} 5. Bc4 {[%emt 0:00:00]} Nb6 {[%emt 0:02:00]} 6. Bb3 {[%emt 0:00:00]} Nc6 {[%emt 0:01:30]} 7. Nf3 $11 {[%emt 0:00:00]} d6 {[%emt 0:06:30]} 8. a4 {[%emt 0:03:00]} dxe5 {[%emt 0:07:30]} 9. a5 {[%emt 0:00:30]} Nd5 {[%emt 0:06:30]} 10. Nxe5 {[%emt 0:00:00]} Nxe5 {[%emt 0:20:30]} 11. Qxd4 {[%emt 0:00:00]} Qd6 {[%emt 0:01:30]} 12. Qxd5 {[%emt 0:03:30]} Qxd5 {[%emt 0:15:30]} 13. Bxd5 {[%emt 0:02:30]} Nd3+ {[%emt 0:00:30]} 14. Ke2 {[%emt 0:00:30]} Nxc1+ {[%emt 0:00:30]} 15. Rxc1 {[%emt 0:00:30]} Rb8 {[%emt 0:02:30]} 16. Na3 {[%emt 0:01:30]} Bd7 {[%emt 0:09:30]} 17. Kf1 {[%emt 0:08:30]} e6 {[%emt 0:05:45]} 18. Bf3 {[%emt 0:00:30]} Bxa3 {[%emt 0:00:31]} 19. Rxa3 {[%emt 0:00:30]} Bc6 {[%emt 0:00:02]} 20. Be2 {[%emt 0:02:30]} Ke7 {[%emt 0:01:39]} 21. b4 {[%emt 0:00:30]} Rhd8 {[%emt 0:03:43]} 22. b5 {[%emt 0:01:30]} Be4 {[%emt 0:00:04]} 23. c4 {[%emt 0:01:30]} Rd2 {[%emt 0:00:58]} 24. f3 {[%emt 0:00:30]} Bf5 {[%emt 0:01:29]} 25. c5 {[%emt 0:00:30]} e5 {[%emt 0:01:04]} 26. a6 {[%emt 0:00:30]} b6 {[%emt 0:03:41]} 27. cxb6 {[%emt 0:09:30]} Rxb6 {[%emt 0:00:08]} 28. Rac3 {[%emt 0:00:30]} Rb8 {[%emt 0:07:14]} 29. Rc5 {[%emt 0:02:30]} f6 {[%emt 0:00:59]} 30. f4 {[%emt 0:04:30]} Be4 {[%emt 0:00:24]} 31. fxe5 {[%emt 0:00:30]} Bxg2+ {[%emt 0:00:38]} 32. Ke1 {[%emt 0:00:30]} Rd5 {[%emt 0:01:00]} 33. Rxd5 {[%emt 0:00:30]} Bxd5 {[%emt 0:00:04]} 34. Rc7+ {[%emt 0:00:30]} Ke6 {[%emt 0:00:54]} 35. exf6 {[%emt 0:00:00]} Kxf6 {[%emt 0:00:42]} 36. Rxa7 {[%emt 0:00:00]} Ke5 {[%emt 0:00:37]} 37. Rxg7 {[%emt 0:00:30]} Kd4 {[%emt 0:00:00]} 38. a7 {[%emt 0:00:30]} Re8 {[%emt 0:00:17]} 39. b6 {[%emt 0:02:30]} Bf3 {[%emt 0:00:12]} 40. Kf2 {[%emt 0:00:00]} Bxe2 {[%emt 0:00:47]} 41. b7 {[%emt 0:00:00]} 1-0

[Event "8th Mersin Open 2024"]
[Site "Mersin"]
[Date "2024.11.12"]
[Round "4"]
[White "Sahin, Ata Sarp"]
[Black "Tezcan, Alper"]
[Result "1/2-1/2"]
[ECO "C01"]
[WhiteElo "2109"]
[BlackElo "2002"]
[Annotator "NA RC"]
[PlyCount "100"]
[EventDate "2024.11.10"]
[EventType "swiss"]
[EventCountry "TUR"]
[SourceTitle "playchess.com"]
[Source "ChessBase"]
[SourceQuality "1"]
[TimeControl "5400+30"]

1. e4 {[%emt 0:01:00]} e6 {[%emt 0:01:00]} 2. d4 {[%emt 0:00:30]} d5 {[%emt 0:00:00]} 3. Nc3 {[%emt 0:00:30]} Bb4 {[%emt 0:00:00]} 4. exd5 {[%emt 0:01:30]} exd5 {[%emt 0:00:30]} 5. Bd3 {[%emt 0:01:30]} Nf6 {[%emt 0:00:00]} 6. Nge2 {[%emt 0:02:30]} O-O {[%emt 0:00:00]} 7. a3 {[%emt 0:01:30]} Bd6 {[%emt 0:01:30]} 8. Nb5 {[%emt 0:03:30]} Be7 {[%emt 0:02:30]} 9. O-O $11 {[%emt 0:10:30]} Re8 {[%emt 0:03:30]} 10. Bf4 {[%emt 0:05:30]} Na6 {[%emt 0:00:30]} 11. c4 {[%emt 0:04:30]} c6 {[%emt 0:27:30]} 12. Nbc3 {[%emt 0:00:30]} dxc4 {[%emt 0:10:30]} 13. Bxc4 {[%emt 0:00:30]} Nc7 {[%emt 0:06:30]} 14. Qb3 {[%emt 0:05:30]} Ncd5 {[%emt 0:08:30]} 15. Be5 {[%emt 0:13:30]} Qb6 {[%emt 0:10:30]} 16. Nxd5 {[%emt 0:06:30]} Nxd5 {[%emt 0:06:49]} 17. Bxd5 {[%emt 0:06:30]} cxd5 {[%emt 0:00:01]} 18. Qxb6 {[%emt 0:03:30]} axb6 {[%emt 0:00:01]} 19. Nc3 {[%emt 0:02:30]} Be6 {[%emt 0:00:51]} 20. Rac1 {[%emt 0:06:30]} Rec8 {[%emt 0:03:06]} 21. f4 {[%emt 0:07:17]} f6 {[%emt 0:00:48]} 22. f5 {[%emt 0:00:11]} Bf7 {[%emt 0:00:33]} 23. Bf4 {[%emt 0:00:30]} Rc4 {[%emt 0:00:50]} 24. Nb5 {[%emt 0:06:28]} Rac8 {[%emt 0:02:05]} 25. Rce1 {[%emt 0:01:01]} Bf8 {[%emt 0:02:36]} 26. Rf3 {[%emt 0:03:07]} Be8 {[%emt 0:05:57]} 27. Nc7 {[%emt 0:01:16]} Bh5 {[%emt 0:00:44]} 28. Rh3 {[%emt 0:03:28]} Bg4 {[%emt 0:01:03]} 29. Rg3 {[%emt 0:00:06]} Bxf5 {[%emt 0:02:19]} 30. Nxd5 {[%emt 0:00:08]} Rxd4 {[%emt 0:01:01]} 31. Nxf6+ {[%emt 0:00:10]} Kf7 {[%emt 0:00:56]} 32. Be3 {[%emt 0:01:01]} Rd3 {[%emt 0:02:04]} 33. Nh5 {[%emt 0:02:42]} g6 {[%emt 0:00:52]} 34. Nf4 {[%emt 0:00:34]} Rb3 {[%emt 0:01:18]} 35. Re2 {[%emt 0:01:00]} Bg7 {[%emt 0:00:33]} 36. Nd5 {[%emt 0:00:16]} Re8 {[%emt 0:00:27]} 37. Kf2 {[%emt 0:00:43]} Bxb2 {[%emt 0:00:33]} 38. Nxb6 {[%emt 0:00:18]} Rexe3 {[%emt 0:00:35]} 39. Rgxe3 {[%emt 0:00:12]} Bd4 {[%emt 0:00:10]} 40. Nc4 {[%emt 0:00:35]} Kf6 {[%emt 0:00:47]} 41. Kf3 {[%emt 0:00:51]} Bxe3 {[%emt 0:00:42]} 42. Rxe3 {[%emt 0:00:06]} Rb1 {[%emt 0:00:10]} 43. Nd6 {[%emt 0:00:24]} Bd7 {[%emt 0:00:33]} 44. Ne4+ {[%emt 0:01:00]} Kg7 {[%emt 0:00:29]} 45. Kf2 {[%emt 0:00:33]} Bc6 {[%emt 0:00:19]} 46. Re2 {[%emt 0:00:30]} Ra1 {[%emt 0:00:27]} 47. Nc5 {[%emt 0:00:10]} Kf6 {[%emt 0:00:46]} 48. Rb2 {[%emt 0:00:28]} Rxa3 {[%emt 0:00:56]} 49. Nxb7 {[%emt 0:00:11]} Bxb7 {[%emt 0:00:09]} 50. Rxb7 {[%emt 0:00:30]} Ra2+ {[%emt 0:00:00]} 1/2-1/2

[Event "8th Mersin Open 2024"]
[Site "Mersin"]
[Date "2024.11.12"]
[Round "4"]
[White "Ererdem, Gani Eren"]
[Black "Karabulut, Etka"]
[Result "0-1"]
[ECO "E03"]
[WhiteElo "2066"]
[BlackElo "2024"]
[Annotator "NA RC"]
[PlyCount "118"]
[EventDate "2024.11.10"]
[EventType "swiss"]
[EventCountry "TUR"]
[SourceTitle "playchess.com"]
[Source "ChessBase"]
[SourceQuality "1"]
[TimeControl "5400+30"]

1. d4 {[%emt 0:01:00]} d5 {[%emt 0:01:00]} 2. c4 {[%emt 0:00:00]} dxc4 {[%emt 0:00:30]} 3. Nf3 {[%emt 0:00:00]} Nf6 {[%emt 0:00:00]} 4. Qa4+ {[%emt 0:01:30]} Nbd7 {[%emt 0:01:00]} 5. Qxc4 {[%emt 0:02:30]} e6 $11 {[%emt 0:00:00]} 6. g3 {[%emt 0:28:30]} a6 {[%emt 0:04:00]} 7. Bg2 {[%emt 0:08:30]} b5 {[%emt 0:13:30]} 8. Qb3 {[%emt 0:03:30]} Bb7 {[%emt 0:00:30]} 9. O-O {[%emt 0:00:30]} c5 {[%emt 0:02:30]} 10. a4 {[%emt 0:00:30]} c4 {[%emt 0:12:30]} 11. Qc2 {[%emt 0:03:30]} Be7 {[%emt 0:02:30]} 12. axb5 {[%emt 0:13:30]} axb5 {[%emt 0:00:00]} 13. Rxa8 {[%emt 0:01:30]} Qxa8 {[%emt 0:00:00]} 14. Nc3 {[%emt 0:00:30]} Bc6 {[%emt 0:03:30]} 15. Nh4 {[%emt 0:06:30]} Bxg2 {[%emt 0:01:30]} 16. Nxg2 {[%emt 0:00:00]} Qb7 {[%emt 0:00:30]} 17. Bg5 {[%emt 0:11:37]} O-O {[%emt 0:03:30]} 18. Ne3 {[%emt 0:06:09]} Rc8 {[%emt 0:03:30]} 19. Rd1 {[%emt 0:00:33]} b4 {[%emt 0:14:30]} 20. Nb1 {[%emt 0:00:24]} Nb6 {[%emt 0:02:30]} 21. Nd2 {[%emt 0:01:01]} c3 {[%emt 0:00:30]} 22. bxc3 {[%emt 0:00:24]} Rxc3 {[%emt 0:01:30]} 23. Qb1 {[%emt 0:00:09]} Na4 {[%emt 0:03:30]} 24. Bxf6 {[%emt 0:02:13]} Bxf6 {[%emt 0:03:30]} 25. Ne4 {[%emt 0:00:12]} Be7 {[%emt 0:13:37]} 26. d5 {[%emt 0:00:05]} b3 {[%emt 0:01:42]} 27. d6 {[%emt 0:01:21]} Bd8 {[%emt 0:00:51]} 28. Nxc3 {[%emt 0:08:00]} Nxc3 {[%emt 0:00:05]} 29. Qb2 {[%emt 0:00:37]} Nxd1 {[%emt 0:00:38]} 30. Nxd1 {[%emt 0:00:00]} Bf6 {[%emt 0:01:23]} 31. d7 {[%emt 0:00:15]} Qb8 {[%emt 0:08:48]} 32. Qd2 {[%emt 0:00:51]} Kf8 {[%emt 0:00:31]} 33. Nb2 {[%emt 0:00:36]} Ke7 {[%emt 0:00:30]} 34. Nc4 {[%emt 0:00:00]} Kd8 {[%emt 0:01:49]} 35. Na5 {[%emt 0:01:01]} Qb6 {[%emt 0:00:16]} 36. Nc4 {[%emt 0:00:31]} b2 {[%emt 0:00:32]} 37. Nxb6 {[%emt 0:00:47]} b1=Q+ {[%emt 0:00:30]} 38. Kg2 {[%emt 0:00:00]} Qxb6 {[%emt 0:00:00]} 39. Qc2 {[%emt 0:01:05]} Kxd7 {[%emt 0:00:15]} 40. Qxh7 {[%emt 0:00:00]} Ke7 {[%emt 0:00:08]} 41. Qc2 {[%emt 0:00:02]} Kf8 {[%emt 0:00:45]} 42. h4 {[%emt 0:00:13]} e5 {[%emt 0:01:31]} 43. Qc8+ {[%emt 0:00:22]} Qd8 {[%emt 0:00:08]} 44. Qc5+ {[%emt 0:00:50]} Kg8 {[%emt 0:00:06]} 45. e4 {[%emt 0:00:00]} Qa8 {[%emt 0:00:30]} 46. Qc4 {[%emt 0:00:01]} Qd8 {[%emt 0:01:26]} 47. Qc6 {[%emt 0:00:05]} Be7 {[%emt 0:00:00]} 48. Qb7 {[%emt 0:00:27]} Bc5 {[%emt 0:00:09]} 49. Qc6 {[%emt 0:00:42]} Bd4 {[%emt 0:00:07]} 50. f3 {[%emt 0:00:13]} Qb8 {[%emt 0:00:11]} 51. Kh3 {[%emt 0:00:00]} g6 {[%emt 0:01:33]} 52. Qd7 {[%emt 0:00:05]} Qb3 {[%emt 0:00:19]} 53. Kg4 {[%emt 0:03:42]} Qe6+ {[%emt 0:00:00]} 54. Qxe6 {[%emt 0:00:07]} fxe6 {[%emt 0:00:06]} 55. h5 {[%emt 0:00:30]} Kg7 {[%emt 0:00:30]} 56. f4 {[%emt 0:00:06]} Bf2 {[%emt 0:01:10]} 57. hxg6 {[%emt 0:01:07]} Kxg6 {[%emt 0:00:38]} 58. Kf3 {[%emt 0:00:32]} Be1 {[%emt 0:00:40]} 59. Kg4 {[%emt 0:00:06]} Kh6 {[%emt 0:00:52]} 0-1

[Event "8th Mersin Open 2024"]
[Site "Mersin"]
[Date "2024.11.12"]
[Round "4"]
[White "Khalili, Saeid"]
[Black "Gulden, Egemen"]
[Result "1-0"]
[ECO "E43"]
[WhiteElo "2066"]
[BlackElo "2084"]
[Annotator "NA RC"]
[PlyCount "95"]
[EventDate "2024.11.10"]
[EventType "swiss"]
[EventCountry "TUR"]
[SourceTitle "playchess.com"]
[Source "ChessBase"]
[SourceQuality "1"]
[TimeControl "5400+30"]

1. d4 {[%emt 0:00:00]} Nf6 {[%emt 0:06:00]} 2. Nf3 {[%emt 0:00:30]} b6 {[%emt 0:00:30]} 3. c4 {[%emt 0:00:30]} Bb7 {[%emt 0:00:00]} 4. Nc3 {[%emt 0:00:30]} e6 {[%emt 0:03:00]} 5. e3 {[%emt 0:00:30]} Bb4 {[%emt 0:02:30]} 6. Qb3 {[%emt 0:00:30]} Bxc3+ {[%emt 0:02:30]} 7. bxc3 {[%emt 0:01:30]} O-O {[%emt 0:00:30]} 8. Bd3 {[%emt 0:01:30]} Ne4 {[%emt 0:00:30]} 9. O-O {[%emt 0:03:30]} f5 $11 {[%emt 0:03:30]} 10. Qc2 {[%emt 0:06:30]} Qf6 {[%emt 0:07:30]} 11. Rb1 {[%emt 0:03:30]} d6 {[%emt 0:01:30]} 12. Nd2 {[%emt 0:06:30]} Qg6 {[%emt 0:02:30]} 13. f3 {[%emt 0:01:30]} Ng5 {[%emt 0:01:30]} 14. Ba3 {[%emt 0:04:30]} Nd7 {[%emt 0:02:30]} 15. Rbe1 {[%emt 0:00:30]} Rf6 {[%emt 0:09:30]} 16. Kh1 {[%emt 0:04:30]} Qh5 {[%emt 0:01:30]} 17. Rf2 {[%emt 0:02:30]} Rh6 {[%emt 0:00:30]} 18. Nf1 {[%emt 0:00:30]} Nxf3 {[%emt 0:07:30]} 19. gxf3 {[%emt 0:01:30]} Bxf3+ {[%emt 0:00:30]} 20. Rxf3 {[%emt 0:01:30]} Qxf3+ {[%emt 0:00:30]} 21. Qg2 {[%emt 0:00:30]} Qxg2+ {[%emt 0:00:30]} 22. Kxg2 {[%emt 0:00:00]} Rf8 {[%emt 0:05:30]} 23. Bc1 {[%emt 0:01:00]} e5 {[%emt 0:01:30]} 24. Ng3 {[%emt 0:01:30]} e4 {[%emt 0:01:30]} 25. Be2 {[%emt 0:00:30]} g5 {[%emt 0:06:30]} 26. Rf1 {[%emt 0:01:30]} Rhf6 {[%emt 0:00:30]} 27. Nh5 {[%emt 0:00:30]} R6f7 {[%emt 0:01:30]} 28. c5 {[%emt 0:00:30]} d5 {[%emt 0:03:30]} 29. c6 {[%emt 0:08:30]} Nb8 {[%emt 0:02:30]} 30. Ba3 {[%emt 0:03:30]} Rd8 {[%emt 0:06:30]} 31. c4 {[%emt 0:01:30]} Nxc6 {[%emt 0:00:30]} 32. cxd5 {[%emt 0:00:30]} Na5 {[%emt 0:00:00]} 33. Bb4 {[%emt 0:01:30]} Nb7 {[%emt 0:05:13]} 34. Ng3 {[%emt 0:01:30]} a5 {[%emt 0:07:35]} 35. Ba3 {[%emt 0:00:00]} Nd6 {[%emt 0:00:03]} 36. Bxd6 {[%emt 0:01:00]} cxd6 {[%emt 0:00:25]} 37. Nxf5 {[%emt 0:01:30]} Rc7 {[%emt 0:00:16]} 38. a4 {[%emt 0:05:30]} Rc3 {[%emt 0:00:51]} 39. Rf2 {[%emt 0:01:30]} Ra3 {[%emt 0:01:06]} 40. Bd1 {[%emt 0:01:30]} h5 {[%emt 0:02:15]} 41. Bxh5 {[%emt 0:03:30]} Rxa4 {[%emt 0:00:19]} 42. Ne7+ {[%emt 0:00:30]} Kg7 {[%emt 0:03:52]} 43. Rf7+ {[%emt 0:01:30]} Kh6 {[%emt 0:00:12]} 44. Bg6 {[%emt 0:01:30]} Rh8 {[%emt 0:01:47]} 45. Bxe4 {[%emt 0:00:30]} g4 {[%emt 0:00:33]} 46. Kg3 {[%emt 0:00:30]} Ra1 {[%emt 0:01:28]} 47. Kh4 {[%emt 0:01:30]} Rg1 {[%emt 0:00:55]} 48. Ng8+ {[%emt 0:00:30]} 1-0

[Event "8th Mersin Open 2024"]
[Site "Mersin"]
[Date "2024.11.12"]
[Round "4"]
[White "Primbetov, Kazbek"]
[Black "Bayramov, Vugar"]
[Result "1-0"]
[ECO "E73"]
[WhiteElo "2059"]
[BlackElo "2133"]
[Annotator "NA RC"]
[PlyCount "73"]
[EventDate "2024.11.10"]
[EventType "swiss"]
[EventCountry "TUR"]
[SourceTitle "playchess.com"]
[Source "ChessBase"]
[SourceQuality "1"]
[TimeControl "5400+30"]

1. d4 {[%emt 0:01:00]} Nf6 {[%emt 0:01:00]} 2. c4 {[%emt 0:00:30]} g6 {[%emt 0:00:00]} 3. Nc3 {[%emt 0:00:00]} Bg7 {[%emt 0:00:00]} 4. e4 {[%emt 0:00:00]} d6 {[%emt 0:00:30]} 5. Be2 {[%emt 0:00:00]} O-O {[%emt 0:00:00]} 6. Be3 {[%emt 0:00:00]} e5 {[%emt 0:03:00]} 7. d5 {[%emt 0:00:00]} a5 {[%emt 0:02:30]} 8. h4 {[%emt 0:00:00]} Na6 {[%emt 0:05:30]} 9. h5 {[%emt 0:00:30]} Nc5 {[%emt 0:00:00]} 10. Qc2 {[%emt 0:00:00]} c6 {[%emt 0:04:00]} 11. h6 {[%emt 0:27:00]} Bh8 {[%emt 0:00:30]} 12. Nh3 {[%emt 0:08:30]} cxd5 {[%emt 0:03:30]} 13. cxd5 {[%emt 0:00:30]} b6 {[%emt 0:06:30]} 14. f3 {[%emt 0:05:30]} Bd7 {[%emt 0:03:30]} 15. g4 {[%emt 0:03:30]} Rc8 {[%emt 0:00:30]} 16. Qd2 {[%emt 0:07:30]} Qe8 {[%emt 0:08:30]} 17. Nf2 {[%emt 0:03:30]} b5 {[%emt 0:05:30]} 18. Rc1 {[%emt 0:05:30]} b4 {[%emt 0:04:30]} 19. Ncd1 {[%emt 0:01:30]} Bb5 {[%emt 0:05:30]} 20. Bxc5 {[%emt 0:02:30]} Rxc5 {[%emt 0:05:30]} 21. Rxc5 {[%emt 0:00:30]} dxc5 {[%emt 0:00:00]} 22. Ne3 {[%emt 0:00:30]} Bxe2 {[%emt 0:08:00]} 23. Kxe2 {[%emt 0:13:37]} Qd7 {[%emt 0:02:30]} 24. Rc1 {[%emt 0:04:02]} Rc8 {[%emt 0:00:30]} 25. Nd3 {[%emt 0:01:31]} Qe7 {[%emt 0:03:30]} 26. Nc4 {[%emt 0:11:13]} Nd7 {[%emt 0:00:30]} 27. g5 {[%emt 0:01:25]} f6 {[%emt 0:03:30]} 28. Nxa5 {[%emt 0:01:12]} fxg5 {[%emt 0:00:30]} 29. Nc6 {[%emt 0:00:54]} Qf6 {[%emt 0:01:30]} 30. Nf2 {[%emt 0:01:22]} Rf8 {[%emt 0:03:30]} 31. Qd3 {[%emt 0:01:15]} Qf4 {[%emt 0:02:37]} 32. Rc2 {[%emt 0:00:19]} Nf6 {[%emt 0:11:34]} 33. d6 {[%emt 0:00:57]} g4 {[%emt 0:06:33]} 34. Ne7+ {[%emt 0:00:30]} Kf7 {[%emt 0:00:49]} 35. Qb3+ {[%emt 0:00:39]} Ke8 {[%emt 0:00:29]} 36. Qe6 {[%emt 0:00:25]} Qxf3+ {[%emt 0:01:09]} 37. Kf1 {[%emt 0:00:02]} 1-0